Cogmind - Beta 13 @@@ ROGUE MODE // 2024.04.09 @ 23:50:07 Player: Patryk Z Result: Destroyed by Enhanced Grunt with Neutron Cannon Performance ------------- Evolutions (4) 2000 Regions Visited (10) 2000 Robots Destroyed (53) 265 Value Destroyed (2136) 2136 Prototype IDs (15) 300 Alien Tech Used (0) 0 Bonus (407) 407 TOTAL SCORE: 7108 Bonus ------- Follower Combat Kills 107 Met Data Miner 300 Cogmind --------- Core Integrity 0/850 Matter 260/300 Energy 72/100 System Corruption 0% Temperature Cool (0) Movement Core (50) Location -6/Data Miner Parts ------- > --- POWER (1) -------- (None) > --- PROPULSION (2) --- (None) > --- UTILITY (8) ------ Improved Signal Interpreter 0b10 Decoder Chip [Scout] > --- WEAPON (4) ------- (None) > --- INVENTORY (5) ---- Light Deuterium Engine Reinforced Deuterium Engine Hardened Light Armor Plating Plasma Flamer Peak State ------------ > --- POWER ------------ Improved Deuterium Engine > --- PROPULSION ------- Armored Huge Wheel > --- UTILITY ---------- Improved Heat Sink Improved Cooling System High-capacity Storage Unit Improved Signal Interpreter 0b10 Decoder Chip [Scout] Weapon Cycler Medium Armor Plating Improved Medium Armor Plating > --- WEAPON ----------- Advanced Beam Rifle Cooled Pulse Rifle Heavy Beamcaster Flak Gun > --- INVENTORY -------- Light Deuterium Engine Compact Wheel Compact Wheel Armored Wheel Target Analyzer Hardened Light Armor Plating Improved Light Armor Plating Heavy EM Pulse Gun Heavy Beamcaster Remote Datajack Plasma Flamer [Rating: 60] Favorites ----------- Power Light Ion Engine Engine Light Ion Engine Propulsion Compact Wheel Wheel Compact Wheel Utility Improved Signal Interpreter Device Improved Sensor Array Storage High-capacity Storage Unit Processor Improved Signal Interpreter Hackware Hacking Suite Protection Propulsion Shielding Weapon Light Assault Rifle Energy Gun Advanced Beam Rifle Ballistic Gun Light Assault Rifle Special Weapon Mining Laser Build | -11 -10 -10 -10 -9 -8 -7 -6 -6 -6 -6 ------- Run | Yrd Mat Min Exi Min Mat Fac Fac Low Low Dat Slots Evolved 8 | . . . . . 4 2 2 . . . Power . | . . . . . . . . . . . Propulsion . | . . . . . . . . . . . Utility 6 | . . . . . 2 2 2 . . . Weapon 2 | . . . . . 2 . . . . . Parts Attached 80 | 6 6 . . . 18 22 4 15 2 7 Power 6 | 1 1 . . . 2 1 1 . . . Engine 6 | 1 1 . . . 2 1 1 . . . Core . | . . . . . . . . . . . Reactor . | . . . . . . . . . . . Propulsion 10 | 2 1 . . . 2 2 . 3 . . Treads . | . . . . . . . . . . . Leg . | . . . . . . . . . . . Wheel 10 | 2 1 . . . 2 2 . 3 . . Hover . | . . . . . . . . . . . Flight . | . . . . . . . . . . . Utility 33 | 1 2 . . . 7 10 3 5 2 3 Device 7 | . . . . . 2 1 3 1 . . Storage 3 | 1 1 . . . 1 . . . . . Processor 5 | . . . . . 2 . . 2 1 . Hackware 1 | . . . . . . 1 . . . . Protection 17 | . 1 . . . 2 8 . 2 1 3 Artifact . | . . . . . . . . . . . Weapon 31 | 2 2 . . . 7 9 . 7 . 4 Energy Gun 13 | 1 . . . . 3 2 . 5 . 2 Energy Cannon . | . . . . . . . . . . . Ballistic Gun 15 | 1 2 . . . 3 7 . 1 . 1 Ballistic Cannon . | . . . . . . . . . . . Launcher . | . . . . . . . . . . . Special Weapon 3 | . . . . . 1 . . 1 . 1 Impact Weapon . | . . . . . . . . . . . Slashing Weapon . | . . . . . . . . . . . Piercing Weapon . | . . . . . . . . . . . Special Melee Weapon . | . . . . . . . . . . . Unidentified Prototypes 2 | . . . . . 1 1 . . . . Parts Lost 26 | . 3 . . . . 4 . 4 2 13 Power 2 | . 1 . . . . . . . . 1 Propulsion 4 | . 1 . . . . . . 1 1 1 Utility 10 | . . . . . . 3 . 1 . 6 Weapon 10 | . 1 . . . . 1 . 2 1 5 Highest Loss Streak 13 | . 2 . . . . 3 . 4 2 13 To Critical Strikes 2 | . . . . . . 1 . 1 . . Average Slot Usage (%) 93 | . 97 100 100 100 98 84 93 94 98 78 Engine 9 | . 13 14 14 14 9 7 6 6 6 5 Wheel 15 | . 27 28 28 28 18 7 6 7 12 5 Device 7 | . . . . . 6 6 20 18 13 11 Storage 9 | . 14 14 14 14 9 7 6 6 6 5 Processor 7 | . . . . . 8 7 6 13 20 19 Hackware 1 | . . . . . . 6 . . . . Protection 11 | . 12 14 14 14 11 7 20 14 11 6 Energy Gun 10 | . 1 . . . 18 9 6 17 26 17 Ballistic Gun 17 | . 26 28 28 28 16 20 20 8 . 3 Naked Turns . | . . . . . . . . . . . Heaviest Build 85 | 13 18 16 16 16 58 78 83 83 82 85 Greatest Support 32 | 26 32 32 32 32 32 28 28 32 28 12 Greatest Overweight (x) 25 | . . . . . 2 25 2 2 6 7 Average Overweight (x) 1 | . . . . . . 2 2 2 2 5 Largest Inventory Capacity 20 | 8 10 10 10 10 20 20 20 20 20 20 Average Capacity 15 | 7 8 10 10 10 13 20 20 20 20 19 Most Carried 20 | 2 7 6 6 8 11 20 13 13 10 10 Average Carried 9 | 1 4 6 6 6 9 17 12 9 6 8 Final Capacity 20 | 8 10 10 10 10 20 20 20 20 20 5 Final Carried 14 | 2 7 6 6 8 10 14 12 4 10 4 Class Distribution -------------------- 34% | Mutant 30% | Scavenger-Skirmisher 25% | Scavenger-Tank 3% | Derelict-Gunner Dominant Class ---------------- Mutant | -10/Materials Mutant | -10/Mines Mutant | -10/Exiles Mutant | -9/Mines Scavenger-Skirmisher | -8/Materials Scavenger-Skirmisher | -7/Factory Scavenger-Tank | -6/Factory Scavenger-Tank | -6/Lower Caves Scavenger-Tank | -6/Lower Caves Scavenger-Gunner | -6/Data Miner Resources | -11 -10 -10 -10 -9 -8 -7 -6 -6 -6 -6 ----------- Run | Yrd Mat Min Exi Min Mat Fac Fac Low Low Dat Matter Collected 1439 | 249 160 . . . 210 522 . 278 20 . Remotely . | . . . . . . . . . . . Salvage Created 2305 | . 308 . . . 361 641 . 771 224 . Parts 106 | . 17 . . . 14 39 . 27 9 . Haulers Intercepted . | . . . . . . . . . . . Recyclers Shooed 1 | . . . . . . 1 . . . . Parts Field Recycled . | . . . . . . . . . . . Retrieved Matter . | . . . . . . . . . . . Parts Self-Destructed 35 | . . . . . . . . 27 8 . Prevented 4 | . . . . . . . . 3 1 . Kills | -11 -10 -10 -10 -9 -8 -7 -6 -6 -6 -6 ------- Run | Yrd Mat Min Exi Min Mat Fac Fac Low Low Dat Combat Hostiles Destroyed 47 | . 10 . . . 4 14 . 15 4 . Guns 46 | . 10 . . . 4 13 . 15 4 . AOE 1 | . . . . . . 1 . . . . Classes Destroyed 13 | . 3 . . . 4 3 . 3 . . Builder 1 | . . . . . 1 . . . . . Recycler 2 | . 1 . . . 1 . . . . . Minesweeper 2 | . . . . . . . . 1 1 . Watcher 1 | . . . . . 1 . . . . . Swarmer 12 | . 6 . . . . . . 5 1 . Grunt 18 | . 4 . . . 2 7 . 5 . . Brawler 2 | . . . . . . . . 2 . . Duelist 2 | . . . . . . . . 2 . . Sentry 5 | . . . . . 1 2 . 1 1 . Specialist 2 | . . . . . . 2 . . . . Hunter 2 | . . . . . 1 . . . 1 . Programmer 3 | . . . . . . 2 . . 1 . Heavy 1 | . . . . . . 1 . . . . Best Kill Streak 7 | . 4 . . . 2 4 . 7 2 . Combat Bots Only 7 | . 2 . . . 2 4 . 7 2 . Max Kills in Single Turn 1 | . 1 . . . 1 1 . 1 1 . Gunslinging . | . . . . . . . . . . . Exploded 1 | . . . . . . 1 . . . . Melee . | . . . . . . . . . . . Uniques/NPCs Destroyed . | . . . . . . . . . . . Combat | -11 -10 -10 -10 -9 -8 -7 -6 -6 -6 -6 -------- Run | Yrd Mat Min Exi Min Mat Fac Fac Low Low Dat Hostile Shots Fired 350 | . 69 . . . 4 98 . 65 67 47 Missed 83 | . 11 . . . 1 26 . 11 23 11 Damage Taken 5171 | . 612 . . . 44 1273 . 1089 449 1704 Core 1272 | . 228 . . . . 156 . 131 74 683 Absorbed by Shields . | . . . . . . . . . . . Redirected to Shielding 25 | . 25 . . . . . . . . . Core Remaining (%) 71 | 100 . . . 8 100 77 . . . . Volleys Fired 154 | . 56 . . . 14 38 . 25 14 7 Largest 4 | . 2 . . . 4 4 . 4 4 4 Hottest 247 | . 40 . . . 159 167 . 207 247 209 Shots Fired 426 | . 104 . . . 38 123 . 93 52 16 Gun 415 | . 104 . . . 32 123 . 91 52 13 Cannon . | . . . . . . . . . . . Launcher . | . . . . . . . . . . . Special 11 | . . . . . 6 . . 2 . 3 Kinetic 244 | . 104 . . . 16 94 . 26 . 4 Thermal 162 | . . . . . 22 29 . 60 42 9 Explosive . | . . . . . . . . . . . Electromagnetic 15 | . . . . . . . . 5 10 . Robot Hit Streak 17 | . 17 . . . 7 10 . 12 10 3 Robot Miss Streak 7 | . 5 . . . 3 6 . 7 3 4 Penetration Max . | . . . . . . . . . . . Secondary Targets 6 | . 1 . . . . . . 4 1 . Max Gunslinging Chain 1 | . 1 . . . . . . 1 1 . Shots Hit Robots 284 | . 72 . . . 18 89 . 67 29 9 Core Hits 154 | . 24 . . . 11 52 . 53 11 3 Critical Kills 2 | . . . . . 1 1 . . . . Critical Parts Destroyed 1 | . . . . . . . . 1 . . Critical Strikes 15 | . . . . . 2 2 . 8 3 . Burn 12 | . . . . . 1 1 . 7 3 . Destroy 3 | . . . . . 1 1 . 1 . . Melee Attacks . | . . . . . . . . . . . Impact . | . . . . . . . . . . . Slashing . | . . . . . . . . . . . Piercing . | . . . . . . . . . . . Sneak Attacks . | . . . . . . . . . . . Combat Hostiles . | . . . . . . . . . . . Follow-up Attacks . | . . . . . . . . . . . Damage Inflicted 4458 | . 583 . . . 271 1553 . 1369 560 122 Guns 4334 | . 583 . . . 271 1429 . 1369 560 122 Cannons . | . . . . . . . . . . . Explosions 113 | . . . . . . 113 . . . . Melee . | . . . . . . . . . . . Ramming 11 | . . . . . . 11 . . . . Kinetic 2201 | . 583 . . . 81 1142 . 344 . 51 Thermal 2109 | . . . . . 190 400 . 962 486 71 Explosive . | . . . . . . . . . . . Electromagnetic 137 | . . . . . . . . 63 74 . Impact . | . . . . . . . . . . . Slashing . | . . . . . . . . . . . Piercing . | . . . . . . . . . . . Highest Corruption . | . . . . . . . . . . . Average Corruption . | . . . . . . . . . . . Corruption Purged . | . . . . . . . . . . . Corruption Blocked 6 | . . . . . . 6 . . . . Overload Shots 9 | . . . . . . 2 . . 7 . Effects 1 | . . . . . . 1 . . . . Heat Surge 1 | . . . . . . 1 . . . . Overflow Damage . | . . . . . . . . . . . Projectiles . | . . . . . . . . . . . Explosions . | . . . . . . . . . . . Melee . | . . . . . . . . . . . Knockbacks . | . . . . . . . . . . . Impact . | . . . . . . . . . . . Kinetic . | . . . . . . . . . . . Secondary . | . . . . . . . . . . . Self-Inflicted Damage 31 | . . . . . . 31 . . . . Shots 1 | . . . . . . 1 . . . . Rammed 1 | . . . . . . 1 . . . . Targets Rammed 1 | . . . . . . 1 . . . . Kicked . | . . . . . . . . . . . Crushed . | . . . . . . . . . . . Highest Temperature 394 | . 39 . . . 213 394 . 133 132 12 Average Temperature 101 | . 12 . . . 61 159 . 54 60 8 Received Heat Transfer 939 | . 231 . . . 18 219 . 324 147 . Effects 8 | . . . . . . 8 . . . . Shutdowns 2 | . . . . . . 2 . . . . Interference 4 | . . . . . . 4 . . . . Short Circuit 1 | . . . . . . 1 . . . . Damage (minor) 1 | . . . . . . 1 . . . . Siege Activations . | . . . . . . . . . . . Robots Corrupted . | . . . . . . . . . . . Combat Hostiles . | . . . . . . . . . . . Parts Fried . | . . . . . . . . . . . Impact Corruptions . | . . . . . . . . . . . Robots Melted . | . . . . . . . . . . . Combat Hostiles . | . . . . . . . . . . . Parts Melted 6 | . . . . . 2 . . 2 2 . Heat Transferred 4591 | . . . . . 481 716 . 2257 964 173 Parts Sabotaged . | . . . . . . . . . . . Parts Stolen . | . . . . . . . . . . . Parts Stripped . | . . . . . . . . . . . Power Chain Reactions . | . . . . . . . . . . . Alert | -11 -10 -10 -10 -9 -8 -7 -6 -6 -6 -6 ------- Run | Yrd Mat Min Exi Min Mat Fac Fac Low Low Dat Peak Influence 230 | . 230 89 . 7 190 230 93 . . . Initial 93 | . . 89 . . . 2 93 . . . Average 67 | . 69 89 . . 73 96 93 . . . Maximum Alert Level 1 | . 1 . . . . 1 . . . . Low Security (%) 90 | 100 88 100 . 100 100 82 100 . . . Level 1 9 | . 11 . . . . 17 . . . . Level 2 . | . . . . . . . . . . . Level 3 . | . . . . . . . . . . . Level 4 . | . . . . . . . . . . . Level 5 . | . . . . . . . . . . . High Security . | . . . . . . . . . . . Max Security . | . . . . . . . . . . . Squads Dispatched 10 | . 1 . . . 2 7 . . . . Investigation 3 | . . . . . 1 2 . . . . Extermination 2 | . . . . . . 2 . . . . Reinforcement 5 | . 1 . . . 1 3 . . . . Assault . | . . . . . . . . . . . Garrison . | . . . . . . . . . . . Intercept . | . . . . . . . . . . . Searches Triggered . | . . . . . . . . . . . Construction Impeded . | . . . . . . . . . . . Haulers Reinforced . | . . . . . . . . . . . Active Scanning Responses . | . . . . . . . . . . . Cargo Convoy Interrupts 1 | . . . . . . 1 . . . . Stealth | -11 -10 -10 -10 -9 -8 -7 -6 -6 -6 -6 --------- Run | Yrd Mat Min Exi Min Mat Fac Fac Low Low Dat Distress Signals 3 | . 2 . . . 1 . . . . . Communications Jammed . | . . . . . . . . . . . Distress Signals . | . . . . . . . . . . . Times Spotted 67 | . 14 . . . 10 15 . 16 8 4 Peak Tracking Total 9 | . 4 . . . 3 3 . 9 3 4 Tactical Retreats 3 | . . . . . 1 1 . 1 . . Traps | -11 -10 -10 -10 -9 -8 -7 -6 -6 -6 -6 ------- Run | Yrd Mat Min Exi Min Mat Fac Fac Low Low Dat Traps Triggered . | . . . . . . . . . . . Indirectly . | . . . . . . . . . . . Trap Hack Attempts . | . . . . . . . . . . . Triggered . | . . . . . . . . . . . Disarmed . | . . . . . . . . . . . Reprogrammed . | . . . . . . . . . . . Reused . | . . . . . . . . . . . Traps Extracted . | . . . . . . . . . . . Installed . | . . . . . . . . . . . Triggered 7 | . . . . . . 3 . 3 1 . Machines | -11 -10 -10 -10 -9 -8 -7 -6 -6 -6 -6 ---------- Run | Yrd Mat Min Exi Min Mat Fac Fac Low Low Dat Machines Disabled 6 | . . . . . 2 3 . . . 1 Max in Single Turn 2 | . . . . . 1 2 . . . 1 Garrison Access 1 | . . . . . . 1 . . . . Machines Repaired . | . . . . . . . . . . . Machines Dismantled . | . . . . . . . . . . . Machines Sabotaged . | . . . . . . . . . . . Overloaded Fab Kills . | . . . . . . . . . . . Hacking | -11 -10 -10 -10 -9 -8 -7 -6 -6 -6 -6 --------- Run | Yrd Mat Min Exi Min Mat Fac Fac Low Low Dat Machines Accessed 21 | . 3 . 4 1 2 5 1 1 . 4 Terminals 6 | . 2 . . 1 2 1 . . . . Fabricators 1 | . . . . . . 1 . . . . Repair Stations . | . . . . . . . . . . . Recycling Units 2 | . 1 . . . . . 1 . . . Scanalyzers 1 | . . . . . . 1 . . . . Garrison Access 2 | . . . . . . 2 . . . . Total Hacks 63 | . 6 . 4 2 8 12 2 1 . 28 Successful 51 | . 3 . 4 2 2 9 2 1 . 28 Failed 12 | . 3 . . . 6 3 . . . . Catastrophic 1 | . . . . . . 1 . . . . Database Lockouts . | . . . . . . . . . . . Manual 20 | . 4 . . 7 8 1 . . . . Terminals 17 | . 5 . . 2 8 2 . . . . Fabricators 2 | . . . . . . 2 . . . . Repair Stations . | . . . . . . . . . . . Recycling Units 3 | . 1 . . . . . 2 . . . Scanalyzers 4 | . . . . . . 4 . . . . Garrison Access 4 | . . . . . . 4 . . . . Terminal Hacks 41 | . 2 . 4 2 2 2 . 1 . 28 Record 15 | . . . 4 . . . . . . 11 Part Schematic 12 | . . . . . 2 . . . . 10 Robot Schematic 7 | . 1 . . 2 . . . . . 4 Prototype ID Bank 3 | . . . . . . . . . . 3 Open Door 1 | . . . . . . . . 1 . . Branch Access Points 1 | . 1 . . . . . . . . . Fabricator Index 1 | . . . . . . 1 . . . . Locate Traps 1 | . . . . . . 1 . . . . Fabricator Hacks 2 | . . . . . . 2 . . . . Load Schematic 1 | . . . . . . 1 . . . . Build 1 | . . . . . . 1 . . . . Repair Station Hacks . | . . . . . . . . . . . Recycling Unit Hacks 3 | . 1 . . . . . 2 . . . Report Inventory 3 | . 1 . . . . . 2 . . . Scanalyzer 4 | . . . . . . 4 . . . . Insert Component 2 | . . . . . . 2 . . . . Analyze 2 | . . . . . . 2 . . . . Garrison Access Hacks 1 | . . . . . . 1 . . . . Seal Access 1 | . . . . . . 1 . . . . Unauthorized Hacks . | . . . . . . . . . . . Terminals . | . . . . . . . . . . . Fabricators . | . . . . . . . . . . . Repair Stations . | . . . . . . . . . . . Recycling Units . | . . . . . . . . . . . Scanalyzers . | . . . . . . . . . . . Garrison Access . | . . . . . . . . . . . Data Cores Recovered . | . . . . . . . . . . . Used . | . . . . . . . . . . . Hacking Detections 9 | . 2 . . 1 2 4 . . . . Full Trace Events 3 | . . . . . 1 2 . . . . Feedback Events . | . . . . . . . . . . . Feedback Blocked . | . . . . . . . . . . . Robot Schematics Acquired 7 | . 1 . . 2 . . . . . 4 Robots Built 1 | . . . . . . 1 . . . . Authchips . | . . . . . . . . . . . Time 81 | . . . . . . 81 . . . . Total Robot Build Rating 1 | . . . . . . 1 . . . . Part Schematics Acquired 14 | . . . . . 2 2 . . . 10 Parts Built . | . . . . . . . . . . . Authchips . | . . . . . . . . . . . Time . | . . . . . . . . . . . Total Part Build Rating . | . . . . . . . . . . . Parts Repaired . | . . . . . . . . . . . Time . | . . . . . . . . . . . Parts Recycled . | . . . . . . . . . . . Recycled Matter . | . . . . . . . . . . . Retrieved Matter . | . . . . . . . . . . . Retrieved Components . | . . . . . . . . . . . Parts Scanalyzed 2 | . . . . . . 2 . . . . Part Schematics Acquired 2 | . . . . . . 2 . . . . Parts Damaged . | . . . . . . . . . . . Bothacking | -11 -10 -10 -10 -9 -8 -7 -6 -6 -6 -6 ------------ Run | Yrd Mat Min Exi Min Mat Fac Fac Low Low Dat Used RIF Installer . | . . . . . . . . . . . Robots Hacked 2 | . . . . . . . . 1 . 1 Non-combat 1 | . . . . . . . . 1 . . Combat 1 | . . . . . . . . . . 1 Robot Hacks Applied 2 | . . . . . . . . 1 . 1 parse_system 1 | . . . . . . . . . . 1 no_distress 1 | . . . . . . . . 1 . . Relay Couplers Released . | . . . . . . . . . . . Fabnet Peak Effective % . | . . . . . . . . . . . Robots Rewired 2 | . . . . . . . . 2 . . Allies Hacked . | . . . . . . . . . . . Hacks Repelled . | . . . . . . . . . . . Allies | -11 -10 -10 -10 -9 -8 -7 -6 -6 -6 -6 -------- Run | Yrd Mat Min Exi Min Mat Fac Fac Low Low Dat Total Allies 6 | . . . . 3 . 1 . 2 . . Largest Group 3 | . . . . 3 3 1 1 2 2 . Highest-Rated Group 52 | . . . . 40 40 10 10 52 52 . Highest-Rated Ally 32 | . . . . 16 16 10 10 32 32 . Total Orders 10 | . . . . . . 10 . . . . STAY 5 | . . . . . . 5 . . . . FOLLOW 5 | . . . . . . 5 . . . . Ally Attacks 24 | . . . . . 16 . . . 8 . Total Damage 565 | . . . . . 202 . . . 363 . Kills 4 | . . . . . 1 . . . 3 . Allies Corrupted . | . . . . . . . . . . . Allies Melted . | . . . . . . . . . . . Intel | -11 -10 -10 -10 -9 -8 -7 -6 -6 -6 -6 ------- Run | Yrd Mat Min Exi Min Mat Fac Fac Low Low Dat Robot Analysis Total . | . . . . . . . . . . . Derelict Logs Recovered 3 | . . . . 1 . . . . 2 . Drone Launches . | . . . . . . . . . . . Drone Recoveries . | . . . . . . . . . . . Exploration | -11 -10 -10 -10 -9 -8 -7 -6 -6 -6 -6 ------------- Run | Yrd Mat Min Exi Min Mat Fac Fac Low Low Dat Turns Passed 5961 | 47 672 68 470 782 507 1574 187 602 856 196 Spaces Moved 3592 | 41 223 68 469 631 293 658 137 367 604 101 Core 16 | 1 . . . . . 1 . . . 14 Treads . | . . . . . . . . . . . Legs . | . . . . . . . . . . . Wheels 3576 | 40 223 68 469 631 293 657 137 367 604 87 Hover . | . . . . . . . . . . . Flight . | . . . . . . . . . . . Fastest Speed 50 | 50 90 100 100 100 95 125 130 125 125 50 Average Speed 115 | 88 93 100 100 100 104 131 130 128 125 163 Slowest Speed 1300 | 90 100 100 100 100 125 1300 130 130 180 195 Overloaded Moves . | . . . . . . . . . . . Propulsion Burnouts . | . . . . . . . . . . . Robots Hopped . | . . . . . . . . . . . Cave-ins Triggered . | . . . . . . . . . . . Exploration Rate (%) 46 | 2 42 21 93 98 21 16 4 53 87 78 Regions Visited 10 Branch Regions 6 Pre-discovered Areas 2 | . . 1 . . . . . . . 1 Known Exits Taken 6 | . 1 . . . 1 1 1 1 1 . Unknown Exits Taken 4 | 1 . 1 1 1 . . . . . . Scrap Searched 5 | . . . . 1 . . . 2 2 . Spaces Dug 5 | . . . . . 5 . . . . . Terrain Destroyed 38 | . . . . . 6 27 . . 5 . Melee . | . . . . . . . . . . . Projectile 15 | . . . . . 6 4 . . 5 . AOE 23 | . . . . . . 23 . . . . Terrain Rammed . | . . . . . . . . . . . Walls Destroyed . | . . . . . . . . . . . Machines Disabled . | . . . . . . . . . . . Actions | -11 -10 -10 -10 -9 -8 -7 -6 -6 -6 -6 --------- Run | Yrd Mat Min Exi Min Mat Fac Fac Low Low Dat Total 5101 | 48 603 68 470 782 456 1287 145 453 667 122 Wait 1194 | . 311 . 2 150 114 547 5 21 40 4 Move 3582 | 40 222 67 468 630 292 657 136 366 603 101 Hop . | . . . . . . . . . . . Pick Up 34 | 2 6 . . 2 6 10 . 3 5 . Fast Attach 25 | 6 4 . . . 8 4 . 2 1 . Attach 34 | . 2 . . . 4 11 2 8 1 6 Detach 14 | . 1 . . . 2 8 . 1 2 . Swap 21 | . . . . . 6 7 2 5 . 1 Drop 28 | . 1 1 . . 10 4 . 8 1 3 Fire 154 | . 56 . . . 14 38 . 25 14 7 Melee . | . . . . . . . . . . . Ram 1 | . . . . . . 1 . . . . Kick . | . . . . . . . . . . . Crush . | . . . . . . . . . . . Escape Stasis . | . . . . . . . . . . . Rewire 14 | . . . . . . . . 14 . . Trap . | . . . . . . . . . . . Miscellaneous . | . . . . . . . . . . . Route ------- -11/Scrapyard -10/Materials -10/Mines -10/Exiles (discovered 2 exits: *Min x2) -9/Mines (discovered 2 exits: *Mat x2) -8/Materials -7/Factory -6/Factory -6/Lower Caves -6/Lower Caves (discovered 2 exits: *Fac / *Dat) -6/Data Miner (discovered 1 exit: *Pro) History --------- Turn | Location | Event 19 | -11/Scrapyard | Discovered new exit (range 16) 48 | -11/Scrapyard | Entered Materials 302 | -10/Materials | Build established: Mutant 586 | -10/Materials | Core integrity fell below 50% 630 | -10/Materials | Identified exit to Mines 659 | -10/Materials | Core integrity fell below 20% 720 | -10/Materials | Entered Mines 728 | -10/Mines | Met a Derelict bent on vengeance 767 | -10/Mines | Learned location of Storage (-8) 784 | -10/Mines | Deemed a non-threat by the Exiles lab entrance 784 | -10/Mines | Discovered new exit (range 5) 788 | -10/Mines | Entered Exiles 788 | -10/Exiles | Found Exiles lab abandoned 806 | -10/Exiles | Discovered new exit (range 14) 1248 | -10/Exiles | Discovered new exit (range 10) 1258 | -10/Exiles | Entered Mines 1512 | -9/Mines | Assisted by bots powering up and referring to "LRC-V3" 1551 | -9/Mines | Discovered new exit (range 8) 1715 | -9/Mines | YI-UF0 nonchalantly dropped a Grenade Launcher on the ground 1779 | -9/Mines | A weapon hastily lodged in a ceiling crevice suddenly fell to the ground 1923 | -9/Mines | Learned Materials security intel 1975 | -9/Mines | Found a hidden stash of uninstalled traps 2021 | -9/Mines | Discovered new exit (range 8) 2040 | -9/Mines | Entered Materials 2040 | -8/Materials | Accompanied by 3 allies 2040 | -8/Materials | Evolved 4 slots: Utility x2, Weapon x2 2509 | -8/Materials | Build established: Scavenger-Skirmisher 2539 | -8/Materials | Discovered new exit (range 5) 2546 | -8/Materials | Identified exit to Factory 2547 | -8/Materials | Entered Factory 2547 | -7/Factory | Evolved 2 slots: Utility x2 3058 | -7/Factory | Discovered new exit (range 7) 3064 | -7/Factory | Identified exit to Factory 3410 | -7/Factory | Fabricated O-16 Technician (x1) 3435 | -7/Factory | Cargo convoy interrupted 4121 | -7/Factory | Entered another Factory area 4121 | -6/Factory | Accompanied by 1 ally 4121 | -6/Factory | Evolved 2 slots: Utility x2 4126 | -6/Factory | Lost 3 parts (3u) 4289 | -6/Factory | Discovered new exit (range 16) 4307 | -6/Factory | Identified exit to Lower Caves 4308 | -6/Factory | Entered Lower Caves 4308 | -6/Lower Caves | Accompanied by 1 ally 4384 | -6/Lower Caves | Build established: Scavenger-Tank 4694 | -6/Lower Caves | Attracted the attention of an 0b10 outpost 4752 | -6/Lower Caves | Destroyed 7 combat bots 4766 | -6/Lower Caves | Lost 4 parts (1n1u2w) 4879 | -6/Lower Caves | Discovered new exit (range 15) 4909 | -6/Lower Caves | Identified exit to Lower Caves 4910 | -6/Lower Caves | Entered another Lower Caves area 4910 | -6/Lower Caves | Accompanied by 2 allies 4924 | -6/Lower Caves | Learned Factory terminal intel 4937 | -6/Lower Caves | Learned 4 Factory zone layouts 5054 | -6/Lower Caves | Encountered a Warlord checkpoint 5055 | -6/Lower Caves | Discovered new exit (range 5) 5111 | -6/Lower Caves | Identified exit to Factory 5730 | -6/Lower Caves | Attracted the attention of an 0b10 checkpoint 5749 | -6/Lower Caves | Spotted B-75 Beast 5753 | -6/Lower Caves | Discovered new exit (range 7) 5764 | -6/Lower Caves | Identified exit to Data Miner 5766 | -6/Lower Caves | Entered Data Miner 5766 | -6/Data Miner | Discovered new exit (range 6) 5775 | -6/Data Miner | Identified exit to Proximity Caves 5801 | -6/Data Miner | Met Data Miner 5879 | -6/Data Miner | Learned location of Section 7 (-3) 5879 | -6/Data Miner | Acquired the access code to Warlord's prototype stash 5895 | -6/Data Miner | Received God Mode back door access code from Data Miner 5915 | -6/Data Miner | Data Conduit disabled 5946 | -6/Data Miner | Core integrity fell below 50% 5960 | -6/Data Miner | Core integrity fell below 20% 5962 | -6/Data Miner | Destroyed by Enhanced Grunt with Neutron Cannon Last Messages --------------- 05944_ Hvy. Beamcaster destroyed. 05949_ Adv. Beam Rifle destroyed. 05950_ Imp. Light Armor Plating destroyed. 05951_ Jacked Enhanced Grunt... 05951_ Command string: \\PJNG 05951_ No effect. 05952_ Imp. Deuterium Engine destroyed. 05952_ Jacked Enhanced Grunt... >>parse_system Reading system data... New IDs: Exp. Thermal Shield Adv. Energy Well Neutron Cannon 05953_ Imp. Medium Armor Plating destroyed. 05954_ Dropped Hcp. Storage Unit. 05954_ Dropped Imp. Light Armor Plating. 05955_ Dropped Remote Datajack. 05957_ Core Analyzer destroyed. 05962_ Imp. Cooling System destroyed. Map ----- +----------------------------------------------------+ | | | | | | | | | | | | | | | | | | | | | | | | | | | | | | | | | | | ???????????????????????????????????????????????? | | ???????????????????????????????????????????????? | | ???????????????????????????????????????????????? | | ???????????????????????????????????????????????? | | ???????????????????????????????????####????????? | | ????###############????###?#?????### #????????? | | ??#"""""""""""""""###### # #????## #????????? | | ?#""""""""" """"""""; # # # ## > ##????????? | | ?"""""""" @ ######???? | | ?"""""" g g #???? | | #"""""" ! g #???? | | #""""" ! g #???? | | #""""""" | ##???? | | ?""""""" """""" """""""""#####????? | | ?"""""""" """"###############????????? | | ?#"""""" """""###??????????????????????? | | ??#"""""""" "#####????????????????????????? | | ????######"## "#????????????????????????????? | | ?????????#"### "#????????????????????????????? | | ?????????#"### "#????????????????????????????? | | ?????????#"## "#????????????????????????????? | | ?????????#"## "#????????????????????????????? | | ???????????# "#????????????????????????????? | | ???????????### "#????????????????????????????? | | ?????????????# "##???????????????????????????? | | ????????????## ""#???????????????????????????? | | ?????????#?## ""#???????????????????????????? | | ????????##"#"X ""#???????????????????????????? | | ????????""""" "####????????????????????????? | | ????????""""" X"""""????????????????????????? | | ????????##"#"X "##"#????????????????????????? | | ?????????#?## X""""#????????????????????????? | | ????????????## "##"#????????????????????????? | +----------------------------------------------------+ Best States ------------- Heat Dissipation 78 Energy Generation 16 Energy Capacity 290 Matter Stores 300 Matter Capacity 300 Sight Range 20 Robot Scan Range 15 Terrain Scan Density 10 Armor Coverage 750 Propulsion Shielding 33 Weapon Cycling 15 Evasion (%) 50 Target Analysis 5 Core Analysis 6 Offensive Hacking 10 Item Schematics ----------------- Imp. Signal Interpreter | -8/Materials | Hacked Sensor Array | -8/Materials | Hacked Hrd. Heavy Armor Plating | -7/Factory | Scanalyzed Arm. Huge Wheel | -7/Factory | Scanalyzed Combat Drone Bay | -6/Data Miner | Free Lgt. Regenerative Plating | -6/Data Miner | Free Enh. Flexi-carbon Leg | -6/Data Miner | Free Prc. Energy Filter | -6/Data Miner | Free Thunder Hammer | -6/Data Miner | Free Adv. VSS Leg | -6/Data Miner | Free Adv. Coolant Injector | -6/Data Miner | Free HERF Cannon | -6/Data Miner | Free Adv. Power Amplifier | -6/Data Miner | Free Imp. System Guard | -6/Data Miner | Free Robot Schematics ------------------ O-16 Technician | -10/Materials | Hacked W-16 Scout | -9/Mines | Hacked G-34 Mercenary | -9/Mines | Hacked G-50 Soldier | -6/Data Miner | Free A-15 Conveyor | -6/Data Miner | Free B-48 Gladiator | -6/Data Miner | Free L-41 Fighter | -6/Data Miner | Free Fabricated ------------ O-16 Technician | x1 | -7/Factory Alien Tech Used ----------------- None Achievements -------------- Close Call My Command Is Your Wish The Oracle Challenges ------------ None Game ------ Seed NuclearFrostLaser Manual? 0 Play Time 01:22:41 Cumulative 26.7 hours Start 2024.04.09 @ 22:13:45 End 2024.04.09 @ 23:50:07 Sessions 1 Manual Loads 0 Difficulty Rogue Special Mode None Game No. 18 Rogue 18 Adventurer 0 Explorer 0 Win Type - Total 0 Types 0/0/0/0/0/0/0/0/0 Lore% 21 Gallery% 22 Achievement% 24 Wizard Run 0 Options --------- Layout 1 ASCII 0 Keyboard 0 Movement Numpad Keybinds 0 Fullscreen 2 Font 20/X11 Map View 64x42 Zoom Use 0% Tactical HUD 1 Map Filters NONE Filters NONE Steam 1 RUN: 7ac0700f-f043-4699-af64-d3eff3f16015